Cogmind - Beta 15 @@@ ROGUE MODE // 2025.10.12 @ 17:34:27 Player: winnking222 Result: Destroyed by Explosive Trap Performance ------------- Evolutions (0) 0 Regions Visited (4) 800 Robots Destroyed (39) 195 Value Destroyed (885) 885 Prototype IDs (25) 500 Alien Tech Used (0) 0 Bonus (300) 300 TOTAL SCORE: 2680 Bonus ------- Aligned with FarCom 300 Cogmind --------- Core Integrity 0/250 Matter 280/300 Energy 248/250 System Corruption 0% Temperature Cool (1) Movement Treading (240) Ox1 Location -9/Mines Parts ------- > --- POWER (1) -------- Ion Engine > --- PROPULSION (2) --- Light Treads > --- UTILITY (2) ------ Large Storage Unit Seismic Detector > --- WEAPON (2) ------- Assault Rifle Light Assault Rifle > --- INVENTORY (15) --- Micro Nuclear Core Light Fission Core Combat Airjet Combat Airjet Flying Fortress v7 Improved Heat Sink Medium Storage Unit High-capacity Matter Pod (200) Improved Light Armor Plating Improved EM Pulse Cannon Mini Grenade Launcher Field Lobotomy Kit (5) Peak State ------------ > --- POWER ------------ Ion Engine > --- PROPULSION ------- Light Treads Light Treads > --- UTILITY ---------- Large Storage Unit Seismic Detector > --- WEAPON ----------- Assault Rifle Mini Grenade Launcher > --- INVENTORY -------- Reinforced Deuterium Engine Light Fission Core Combat Airjet Combat Airjet Flying Fortress v7 Improved Heat Sink Medium Storage Unit High-capacity Matter Pod Improved Light Armor Plating Light Assault Rifle Field Lobotomy Kit [Rating: 15] Favorites ----------- Power Light Ion Engine Engine Light Ion Engine Propulsion Light Treads Treads Light Treads Leg Aluminum Leg Wheel Wheel Utility Seismic Detector Device Seismic Detector Storage Large Storage Unit Weapon Light Assault Rifle Energy Gun Small Laser Ballistic Gun Light Assault Rifle Launcher Mini Grenade Launcher Build | -11 -10 -10 -10 -9 ------- Run | Yrd Mat Min Exi Min Slots Evolved . | . . . . . Power . | . . . . . Propulsion . | . . . . . Utility . | . . . . . Weapon . | . . . . . Parts Attached 20 | 7 7 2 2 2 Power 4 | 1 1 1 . 1 Engine 4 | 1 1 1 . 1 Core . | . . . . . Reactor . | . . . . . Propulsion 7 | 2 2 1 2 . Treads 4 | 2 . . 2 . Leg 2 | . 2 . . . Wheel 1 | . . 1 . . Hover . | . . . . . Flight . | . . . . . Utility 3 | 2 1 . . . Device 1 | 1 . . . . Storage 2 | 1 1 . . . Processor . | . . . . . Hackware . | . . . . . Protection . | . . . . . Artifact . | . . . . . Weapon 6 | 2 3 . . 1 Energy Gun 1 | 1 . . . . Energy Cannon . | . . . . . Ballistic Gun 3 | 1 2 . . . Ballistic Cannon . | . . . . . Launcher 2 | . 1 . . 1 Special Weapon . | . . . . . Impact Weapon . | . . . . . Slashing Weapon . | . . . . . Piercing Weapon . | . . . . . Special Melee Weapon . | . . . . . Unidentified Prototypes . | . . . . . Parts Lost 4 | . 2 2 . . Power 2 | . 1 1 . . Propulsion 2 | . 1 1 . . Utility . | . . . . . Weapon . | . . . . . Highest Loss Streak 2 | . 1 2 . . To Critical Strikes . | . . . . . Average Backups 11 | 5 11 14 13 11 Power . | . . . 2 1 Propulsion 6 | 3 6 8 5 3 Utility 2 | . 1 2 3 4 Weapon 2 | 1 3 3 1 1 Tool/Special . | . . . . . Unused Backups 19 | . 1 1 6 11 Power 3 | . . . 1 2 Propulsion 8 | . . . 4 4 Utility 4 | . . . . 4 Weapon 3 | . 1 1 1 . Tool/Special 1 | . . . . 1 Average Slot Usage (%) 93 | . 99 90 85 89 Engine 8 | . 13 4 . 5 Treads 13 | . 15 . 13 27 Leg 11 | . 12 19 7 . Wheel 3 | . . 8 7 . Device 14 | . 14 14 14 14 Storage 14 | . 14 14 14 14 Energy Gun 5 | . 9 . . . Ballistic Gun 21 | . 17 27 28 17 Launcher 1 | . . . . 9 Peak Build Rating 15 | 7 8 8 13 15 Average Rating 8 | 5 7 7 11 14 On Entrance 7 | . 7 8 8 13 Naked Turns . | . . . . . Heaviest Build 29 | 11 28 29 24 29 Greatest Support 40 | 40 40 20 40 40 Greatest Overweight (x) 2 | . 1 2 2 1 Average Overweight (x) . | . . 1 1 . Largest Inventory Capacity 15 | 8 15 15 15 15 Average Capacity 13 | 7 13 15 15 15 Most Carried 15 | 8 15 15 15 15 Average Carried 12 | 5 11 14 14 14 Final Capacity 15 | 8 15 15 15 15 Final Carried 15 | 6 15 15 15 15 Class Distribution -------------------- 100% | Mutant Dominant Class ---------------- Mutant | -10/Materials Mutant | -10/Mines Mutant | -10/Exiles Mutant | -9/Mines Resources | -11 -10 -10 -10 -9 ----------- Run | Yrd Mat Min Exi Min Matter Collected 826 | 289 341 68 20 108 Remotely . | . . . . . Salvage Created 892 | 172 501 34 . 185 Parts 76 | 21 33 6 . 16 Haulers Intercepted . | . . . . . Recyclers Shooed 2 | . 2 . . . Parts Field Recycled . | . . . . . Retrieved Matter . | . . . . . Parts Self-Destructed . | . . . . . Prevented . | . . . . . Kills | -11 -10 -10 -10 -9 ------- Run | Yrd Mat Min Exi Min Combat Hostiles Destroyed 26 | . 17 3 . 6 Guns 6 | . 6 . . . AOE 20 | . 11 3 . 6 Classes Destroyed 9 | 2 4 . . 3 Worker 1 | 1 . . . . Builder 1 | . . . . 1 Tunneler 9 | 8 . 1 . . Recycler 1 | . 1 . . . Watcher 1 | . 1 . . . Swarmer 6 | . 3 3 . . Grunt 18 | . 14 . . 4 Brawler 1 | . . . . 1 Duelist 1 | . . . . 1 Best Kill Streak 4 | 4 4 4 . 4 Combat Bots Only 3 | . 3 3 . 3 Max Kills in Single Turn 3 | 1 3 2 . 2 Gunslinging . | . . . . . Exploded 3 | . 3 2 . 2 Melee . | . . . . . Uniques/NPCs Destroyed . | . . . . . Combat | -11 -10 -10 -10 -9 -------- Run | Yrd Mat Min Exi Min Hostile Shots Fired 82 | . 68 10 . 4 Missed 31 | . 26 4 . 1 Hits 51 | . 42 6 . 3 Projectile 51 | . 42 6 . 3 AOE 5 | . . 5 . . Critical Strikes 1 | . 1 . . . Damage Taken 917 | . 572 226 . 119 Core 262 | . 116 39 . 107 Absorbed by Shields . | . . . . . Core Remaining (%) 100 | 100 . . . . Volleys Fired 77 | 19 48 4 . 6 Largest 2 | 2 2 2 . 2 Hottest 70 | 60 70 50 . 50 Shots Fired 152 | 38 96 7 . 11 Gun 131 | 38 82 5 . 6 Cannon . | . . . . . Launcher 21 | . 14 2 . 5 Special . | . . . . . Kinetic 81 | 19 51 5 . 6 Thermal 50 | 19 31 . . . Explosive 21 | . 14 2 . 5 Electromagnetic . | . . . . . Robot Hit Streak 6 | 6 6 1 . 2 Robot Miss Streak 4 | 2 4 1 . 2 Penetration Max . | . . . . . Secondary Targets . | . . . . . Shots Hit Robots 74 | 22 48 1 . 3 Core Hits 60 | 11 34 4 . 11 Critical Kills . | . . . . . Critical Parts Destroyed . | . . . . . Critical Strikes . | . . . . . Melee Attacks . | . . . . . Impact . | . . . . . Slashing . | . . . . . Piercing . | . . . . . Sneak Attacks . | . . . . . Combat Hostiles . | . . . . . Follow-up Attacks . | . . . . . Damage Inflicted 2064 | 230 1171 231 . 432 Guns 676 | 230 396 25 . 25 Cannons . | . . . . . Explosions 1363 | . 766 190 . 407 Melee . | . . . . . Ramming 25 | . 9 16 . . Kinetic 387 | 84 253 25 . 25 Thermal 289 | 146 143 . . . Explosive 1363 | . 766 190 . 407 Electromagnetic . | . . . . . Impact . | . . . . . Slashing . | . . . . . Piercing . | . . . . . Highest Corruption . | . . . . . Average Corruption . | . . . . . Corruption Purged . | . . . . . Corruption Blocked . | . . . . . Overload Shots . | . . . . . Overflow Damage 11 | . 4 7 . . Projectiles . | . . . . . Explosions 11 | . 4 7 . . Melee . | . . . . . Knockbacks . | . . . . . Impact . | . . . . . Kinetic . | . . . . . Secondary . | . . . . . Self-Inflicted Damage 44 | . . 5 . 39 Shots 1 | . . . . 1 Rammed 3 | . 2 1 . . Targets Rammed 5 | . 3 2 . . Kicked 2 | . 1 1 . . Crushed . | . . . . . Highest Temperature 52 | 40 52 . . . Average Temperature 18 | 20 17 . . . Received Heat Transfer 270 | . 252 . . 18 Siege Activations . | . . . . . Martial Activations . | . . . . . Shielding Activations . | . . . . . Robots Disrupted . | . . . . . Combat Hostiles . | . . . . . Robots Corrupted . | . . . . . Combat Hostiles . | . . . . . Parts Fried . | . . . . . Impact Corruptions . | . . . . . Robots Melted . | . . . . . Combat Hostiles . | . . . . . Parts Melted . | . . . . . Heat Transferred 650 | 325 325 . . . Parts Sabotaged . | . . . . . Parts Stolen . | . . . . . Parts Stripped . | . . . . . Power Chain Reactions . | . . . . . Alert | -11 -10 -10 -10 -9 ------- Run | Yrd Mat Min Exi Min Maximum Alert Level 1 | . 1 . . . Low Security (%) 95 | 100 92 100 . 100 Level 1 4 | . 7 . . . Level 2 . | . . . . . Level 3 . | . . . . . Level 4 . | . . . . . Level 5 . | . . . . . High Security . | . . . . . Max Security . | . . . . . Peak Influence 221 | 10 221 118 . 168 Initial 51 | . . 51 . . Average 81 | 2 109 32 . 114 Influence Increases 853 | 45 533 87 . 188 Destroy 0b10 Robot/C 520 | . 340 60 . 120 Destroy 0b10 Robot/NC 65 | 45 10 5 . 5 Destroy Leader 122 | . 92 10 . 20 Successful Hack 13 | . 13 . . . Destroy Structure 118 | . 63 12 . 43 Lose Combat Pursuer 15 | . 15 . . . Influence Decreases 735 | 45 401 219 . 70 Entered New Map 81 | . . 81 . . Time Decay 614 | 45 381 118 . 70 Lost Part 40 | . 20 20 . . Squads Dispatched 5 | . 5 . . . Investigation 3 | . 3 . . . Extermination . | . . . . . Reinforcement 2 | . 2 . . . Assault . | . . . . . Garrison . | . . . . . Intercept . | . . . . . Searches Triggered . | . . . . . Construction Impeded . | . . . . . Haulers Reinforced . | . . . . . Active Scanning Responses . | . . . . . Cargo Convoy Interrupts . | . . . . . Stealth | -11 -10 -10 -10 -9 --------- Run | Yrd Mat Min Exi Min Distress Signals 2 | . 2 . . . Communications Jammed . | . . . . . Distress Signals . | . . . . . Times Spotted 48 | . 34 9 . 5 Peak Tracking Total 7 | . 7 3 . 3 Tactical Retreats 1 | . 1 . . . Traps | -11 -10 -10 -10 -9 ------- Run | Yrd Mat Min Exi Min Traps Triggered 6 | . 4 . . 2 Indirectly . | . . . . . Trap Hack Attempts . | . . . . . Triggered . | . . . . . Disarmed . | . . . . . Reprogrammed . | . . . . . Reused . | . . . . . Traps Extracted . | . . . . . Installed . | . . . . . Triggered . | . . . . . Machines | -11 -10 -10 -10 -9 ---------- Run | Yrd Mat Min Exi Min Machines Disabled . | . . . . . Max in Single Turn . | . . . . . Machines Repaired . | . . . . . Machines Dismantled . | . . . . . Machines Sabotaged . | . . . . . Overloaded Fab Kills . | . . . . . Hacking | -11 -10 -10 -10 -9 --------- Run | Yrd Mat Min Exi Min Machines Accessed 8 | . 5 . 2 1 Terminals 5 | . 5 . . . Fabricators . | . . . . . Repair Stations . | . . . . . Recycling Units . | . . . . . Scanalyzers . | . . . . . Garrison Access . | . . . . . Total Hacks 15 | . 12 . 2 1 Successful 12 | . 9 . 2 1 Failed 3 | . 3 . . . Catastrophic 1 | . 1 . . . Database Lockouts . | . . . . . Manual 12 | . 11 . 1 . Terminals 12 | . 12 . . . Fabricators . | . . . . . Repair Stations . | . . . . . Recycling Units . | . . . . . Scanalyzers . | . . . . . Garrison Access . | . . . . . Terminal Hacks 4 | . 1 . 2 1 Record 1 | . . . 1 . Prototype ID Bank 1 | . 1 . . . Open Door 1 | . . . . 1 Proto ID Catalog 1 | . . . 1 . Fabricator Hacks . | . . . . . Repair Station Hacks . | . . . . . Recycling Unit Hacks . | . . . . . Scanalyzer . | . . . . . Garrison Access Hacks . | . . . . . Unauthorized Hacks 8 | . 8 . . . Terminals 8 | . 8 . . . Botnet 4 | . 4 . . . Skim 4 | . 4 . . . Fabricators . | . . . . . Repair Stations . | . . . . . Recycling Units . | . . . . . Scanalyzers . | . . . . . Garrison Access . | . . . . . Data Cores Recovered . | . . . . . Used . | . . . . . Hacking Detections 3 | . 3 . . . Full Trace Events 1 | . 1 . . . Feedback Events . | . . . . . Feedback Blocked . | . . . . . Robot Schematics Acquired . | . . . . . Robots Built . | . . . . . Authchips . | . . . . . Time . | . . . . . Total Robot Build Rating . | . . . . . Part Schematics Acquired . | . . . . . Parts Built . | . . . . . Authchips . | . . . . . Time . | . . . . . Total Part Build Rating . | . . . . . Parts Repaired . | . . . . . Time . | . . . . . Parts Recycled . | . . . . . Recycled Matter . | . . . . . Retrieved Matter . | . . . . . Retrieved Components . | . . . . . Parts Scanalyzed . | . . . . . Part Schematics Acquired . | . . . . . Parts Damaged . | . . . . . Bothacking | -11 -10 -10 -10 -9 ------------ Run | Yrd Mat Min Exi Min Used RIF Installer . | . . . . . Robots Hacked . | . . . . . Non-combat . | . . . . . Combat . | . . . . . Robot Hacks Applied . | . . . . . Relay Couplers Released . | . . . . . Fabnet Peak Effective % . | . . . . . Robots Rewired . | . . . . . Allies Hacked . | . . . . . Hacks Repelled . | . . . . . Allies | -11 -10 -10 -10 -9 -------- Run | Yrd Mat Min Exi Min Total Allies . | . . . . . Largest Group . | . . . . . Highest-Rated Group . | . . . . . Highest-Rated Ally . | . . . . . Total Orders . | . . . . . Ally Attacks . | . . . . . Total Damage . | . . . . . Kills . | . . . . . Allies Corrupted . | . . . . . Allies Melted . | . . . . . Intel | -11 -10 -10 -10 -9 ------- Run | Yrd Mat Min Exi Min Active Infowar (turns) 2457 | 14 1267 431 602 143 Seismic 2457 | 14 1267 431 602 143 Robot Analysis Total . | . . . . . Derelict Logs Recovered 3 | . . 2 . 1 Drone Launches . | . . . . . Drone Recoveries . | . . . . . Exploration | -11 -10 -10 -10 -9 ------------- Run | Yrd Mat Min Exi Min Turns Passed 2687 | 244 1267 431 602 143 Spaces Moved 1505 | 76 606 300 453 70 Core 16 | 16 . . . . Treads 668 | 60 354 . 184 70 Legs 323 | . 252 71 . . Wheels 498 | . . 229 269 . Hover . | . . . . . Flight . | . . . . . Fastest Speed 50 | 50 160 110 110 160 Average Speed 148 | 136 172 128 130 163 Slowest Speed 240 | 160 190 190 160 240 Overloaded Moves . | . . . . . Propulsion Burnouts . | . . . . . Robots Hopped . | . . . . . Potential Cave-ins . | . . . . . Cave-ins Triggered . | . . . . . Exploration Rate (%) 47 | 5 95 50 70 15 Regions Visited 4 Branch Regions 3 Pre-discovered Areas 2 | . . 1 1 . Known Exits Taken . | . . . . . Unknown Exits Taken 4 | 1 1 1 1 . Scrap Searched 3 | . . 2 . 1 Spaces Dug . | . . . . . Terrain Destroyed 157 | . 92 14 . 51 Melee . | . . . . . Projectile . | . . . . . AOE 157 | . 92 14 . 51 Terrain Rammed . | . . . . . Walls Destroyed . | . . . . . Machines Disabled . | . . . . . Actions | -11 -10 -10 -10 -9 --------- Run | Yrd Mat Min Exi Min Total 1811 | 181 735 338 469 88 Wait 140 | 69 49 21 . 1 Move 1501 | 75 605 299 452 70 Hop . | . . . . . Pick Up 36 | 11 12 4 6 3 Fast Attach 3 | 2 . . . 1 Attach 11 | 5 2 1 2 1 Detach . | . . . . . Swap 20 | . 13 3 . 4 Drop 18 | . 3 4 9 2 Fire 77 | 19 48 4 . 6 Melee . | . . . . . Ram 1 | . . 1 . . Kick 2 | . 1 1 . . Crush 2 | . 2 . . . Escape Stasis . | . . . . . Rewire . | . . . . . Trap . | . . . . . Miscellaneous . | . . . . . Route ------- -11/Scrapyard -10/Materials (discovered 4 exits: [*Mat x3] / [*Min]) -10/Mines (discovered 2 exits: [*Mat] / *Exi) -10/Exiles -9/Mines History --------- Turn | Location | Event 15 | -11/Scrapyard | Discovered new exit (range 15) 245 | -11/Scrapyard | Entered Materials 309 | -10/Materials | Build established: Mutant 672 | -10/Materials | Discovered new exit (range 13) 682 | -10/Materials | Discovered new exit (range 15) 914 | -10/Materials | Discovered new exit (range 12) 1101 | -10/Materials | Discovered new exit (range 13) 1512 | -10/Materials | Entered Mines 1636 | -10/Mines | Assembled infested the area 1641 | -10/Mines | Assisted by a Guerilla fighting off Assembled 1662 | -10/Mines | Core integrity fell below 50% 1699 | -10/Mines | Learned Materials terminal intel 1774 | -10/Mines | Discovered new exit (range 10) 1886 | -10/Mines | Learned location of Storage (-8) 1937 | -10/Mines | Deemed a non-threat by the Exiles lab entrance 1939 | -10/Mines | Discovered new exit (range 5) 1943 | -10/Mines | Entered Exiles 1980 | -10/Exiles | Met 8R-AWN 1995 | -10/Exiles | Met EX-HEX 2025 | -10/Exiles | Met EX-BIN 2038 | -10/Exiles | Aligned with FarCom system 2039 | -10/Exiles | Given EX-Vault access code 2065 | -10/Exiles | Opened EX-Vault 2073 | -10/Exiles | Found Field Lobotomy Kit 2096 | -10/Exiles | Warned to stay clear of 0b10 Research branches 2127 | -10/Exiles | Met EX-DEC 2132 | -10/Exiles | Learned location of Zion (-7) 2251 | -10/Exiles | Found Flying Fortress v7 2524 | -10/Exiles | Discovered new exit (range 14) 2545 | -10/Exiles | Stole two prototypes: Flying Fortress v7, Field Lobotomy Kit 2545 | -10/Exiles | Entered Mines 2579 | -9/Mines | Learned Materials stockpile data 2600 | -9/Mines | Core integrity fell below 20% 2669 | -9/Mines | Met a Derelict who couldn't figure out how to use a Trap Extractor 2688 | -9/Mines | Destroyed by Explosive Trap Last Messages --------------- 02640_ K-01 Serf collects debris. 02668_ Connecting with SHOP.Sys... 02668_ Current location identified: Mines >>Open Door Sealed Doors opened. 02669_ 7Q-0MG(g): "So I found this thing but I have no idea how to use it. And who the hell trapped this place to begin with?!" 02669_ 7Q-0MG(g): "I give up! Here you try, I'm outta here before something nasty happens..." 02669_ Tosses Imp. Trap Extractor to the ground. 02673_ Acquired Imp. EM Pulse Cannon. 02679_ Triggered Blade Trap. 02679_ Massive razor-sharp blades shoot up from within the floor. 02679_ Assault Rifle severed. 02679_ Lgt. Treads severed. 02680_ Acquired Assault Rifle. 02682_ Dropped Rigged Rnf. Deuterium Engine. 02685_ Acquired Mic. Nuclear Core. 02688_ Triggered Explosive Trap. 02688_ An explosion rips through the floor. Map ----- +----------------------------------------------------+ | | | | | | | | | | | | | | | ?????????????????????????????????????????????????? | | ?????????????????????????????????????????????????? | | ?????????????????????????????????????????????????? | | ?????????????????????????????????????????????????? | | ?????????????????????s???????#???????????????????? | | ????????????????????s???????? #??????????????????? | | ?????????????????????s??????? #??????????????????? | | ????????????????????????????? #??????????????????? | | ????????????????????????????? #??????????????????? | | ????????????????????????????? ??????????????????? | | ????????????????????????????? #??????????????????? | | ???????????????????????????## #??????????????????? | | ??????????????????????????## ##?????????????????? | | ??????????????????????????# ###???????????????? | | ?????????????????????####?# ##??????????????? | | ?????????????????????#"[### #??????????????? | | ?????????????????????#"! #X #??????????????? | | ?????????????????????#"[^^ #??????????????? | | ?????????????????????#"=!@ ##??????????????? | | ?????????????????????#"/*=# #???????????????? | | ?????????????????????#" ### #???????????????? | | ?????????????????????####?### ##???????????????? | | ????????????????????????????# ###????????????????? | | ????????????????????????????# #??????????????????? | | ????????????????????????????# #??????????????????? | | ????????????????????????????# #??????????????????? | | ????????????????????????????# #??????????????????? | | ????????????????????????????# #??????????????????? | | ????????????????????????????# #??????????????????? | | ????????????????????????????# #??????????????????? | | ????????????????????????????# #??####????????????? | | ????????????????????????????# #### ?????????????? | | ????????????????????????????# ## #######???????? | | ????????????????????????????### ## ####????? | | ???????????????????????????#### = # [ ##???? | | ??????????????????#???????## %* % #???? | | ??????????????????? ###???# = ## | | ???????????????????? ?## %= #??????? | | ????????????????????? ?# # # ##??????? | | ??????????????????????# # % # #???????? | | ??????????????????????# ## # ##???????? | | ??????????????????????# =% [ #########????????? | | ??????????????????????# % = ####????????????????? | +----------------------------------------------------+ Best States ------------- Heat Dissipation 25 Energy Generation 10 Energy Capacity 250 Matter Stores 300 Matter Capacity 300 Sight Range 16 Terrain Scan Density 10 Evasion (%) 50 Recoil Reduction 2 Item Schematics ----------------- None Robot Schematics ------------------ None Fabricated ------------ Nothing Repaired ---------- Nothing Alien Tech Used ----------------- None Achievements -------------- None Challenges ------------ None Game ------ Seed WeldingAerolevSuit Manual? 0 Play Time 00:15:53 Cumulative 195.5 hours Start 2025.10.12 @ 14:21:58 End 2025.10.12 @ 17:34:27 Sessions 2 Manual Loads 0 Difficulty Rogue Special Mode None Game No. 267 Rogue 267 Adventurer 0 Explorer 0 Win Type - Total 3 Types 2/0/0/1/0/0/0/0/0/0 Lore% 73 Gallery% 73 Achievement% 62 Wizard Run 0 Options --------- Layout 0 ASCII 0 Keyboard 0 Movement Mouse Keybinds 0 Fullscreen 1 Font 16/SmallcapsGlow Map View 75x55 Zoom Use 0% Tactical HUD 1 Map Filters NONE Filters NONE Steam 1 RUN: 4d784dfe-84b4-4cf5-bfbc-4ee839d6deeb